[Event "Turkish Championship 2022"]
[Site "Kemer-Antalya"]
[Date "2022.11.27"]
[Round "3.4"]
[White "Yilmaz, Mustafa"]
[Black "Yilmazyerli, Mert"]
[Result "1/2-1/2"]
[ECO "D41"]
[WhiteElo "2621"]
[BlackElo "2534"]
[Annotator "TA"]
[PlyCount "60"]
[EventDate "2022.11.25"]
[EventCountry "TUR"]
[SourceTitle "playchess.com"]
[Source "ChessBase"]
[SourceQuality "1"]
[TimeControl "40/5400+30:1800+30"]

{[%evp 20,60,27,19,15,21,22,25,25,21,32,14,34,6,6,0,2,10,15,0,0,-10,0,0,0,-8,0,-14,0,-36,-30,-85,-84,-120,-119,-116,-115,-134,-43,-48,-47,-50,-67]} 1. c4 {[%emt 0:01:00]} e6 {[%emt 0:05:00]} 2. Nc3 {[%emt 0:00:30]} d5 {[%emt 0:01:30]} 3. d4 {[%emt 0:00:30]} Nf6 {[%emt 0:00:00]} 4. cxd5 {[%emt 0:00:30]} Nxd5 {[%emt 0:00:00]} 5. e4 {[%emt 0:04:30]} Nxc3 {[%emt 0:00:30]} 6. bxc3 {[%emt 0:00:30]} c5 {[%emt 0:00:00]} 7. Nf3 {[%emt 0:00:30]} cxd4 {[%emt 0:01:00]} 8. cxd4 {[%emt 0:00:30]} Bb4+ {[%emt 0:00:00]} 9. Bd2 {[%emt 0:00:00]} Bxd2+ {[%emt 0:00:00]} 10. Qxd2 {[%emt 0:00:00]} O-O {[%emt 0:00:00]} 11. Rc1 {[%emt 0:01:30]} b6 {[%emt 0:01:00] D41: Queen's Gambit Declined: Semi-Tarrasch with 5 cxd5.} 12. Bd3 {[%emt 0:01:30]} Ba6 {[%emt 0:00:30]} 13. Bxa6 {[%emt 0:05:30]} Nxa6 {[%emt 0:00:30] White has an edge.} 14. O-O {[%emt 0:01:30]} Qe7 {[%emt 0:00:00] [#]} 15. h4 $146 {[%emt 0:10:30]} (15. Qd3 $5 {[%cal Rd3a6]} Nb4 16. Qc4 $14) ({Predecessor:} 15. Qe2 Qb7 16. Ne5 Rac8 17. h4 Nb8 18. Nc4 Qa6 19. Rc2 Nd7 20. e5 Rc7 21. Nd6 Qxe2 22. Rxe2 {½-½ (61) So,W (2788)-Dominguez Perez,L (2739) Saint Louis 2017}) 15... Rac8 {[%emt 0:04:00]} 16. h5 {[%emt 0:00:30]} h6 {[%emt 0:00:30]} 17. Rfe1 {[%emt 0:06:30]} (17. Ne5 {with more complications.} Qb4 18. Qe3 Qd6 19. Rfd1) 17... Qb7 {[%emt 0:06:30]} 18. Rcd1 {[%emt 0:03:30]} Rfd8 {[%emt 0:00:30]} 19. Re3 {[%emt 0:07:30]} Nc5 {[%emt 0:09:30]} 20. Qe1 {[%emt 0:10:30]} Na4 {[%emt 0:09:30]} 21. Qb4 {[%emt 0:06:30]} Nc5 {[%emt 0:06:30]} 22. Qe1 {[%emt 0:05:30]} Na4 {[%emt 0:00:30]} 23. Qb4 {[%emt 0:00:30]} Nc5 {[%emt 0:00:00]} 24. Rde1 {[%emt 0:05:30]} Nd7 {[%emt 0:07:00]} 25. e5 {[%emt 0:00:30] Prevents Nf6.} (25. Qe7 $11 {keeps the balance.}) 25... Nb8 $17 {[%emt 0:01:30]} 26. Re4 {[%emt 0:00:30]} Nc6 {[%emt 0:02:30]} 27. Qd2 {[%emt 0:01:30]} Ne7 {[%emt 0:00:30]} 28. Rg4 {[%emt 0:00:30]} Nf5 {[%emt 0:03:30]} (28... Kh8 $17 29. Qf4 Nd5) 29. Nh4 $1 $15 {[%emt 0:03:30]} Nxh4 {[%emt 0:02:30]} 30. Rxh4 {[%emt 0:00:30]} Qc7 {[%emt 0:00:00] Weighted Error Value: White=0.11 (very precise) /Black=0.09 (flawless)} 1/2-1/2

[Event "Turkish Championship 2022"]
[Site "Kemer-Antalya"]
[Date "2022.11.27"]
[Round "3.5"]
[White "Ozsakallioglu, Okan"]
[Black "Kilic, Eray"]
[Result "0-1"]
[ECO "B99"]
[WhiteElo "2288"]
[BlackElo "2437"]
[Annotator "TA"]
[PlyCount "76"]
[EventDate "2022.11.25"]
[EventCountry "TUR"]
[SourceTitle "playchess.com"]
[Source "ChessBase"]
[SourceQuality "1"]
[TimeControl "40/5400+30:1800+30"]

{[%evp 18,76,28,24,64,16,25,27,31,28,40,-14,-9,-15,43,16,25,-28,110,-29,-29,-29,-32,-25,-17,-46,-46,-52,-59,-78,-71,-107,-101,-146,-149,-172,-85,-126,-94,-191,-106,-259,-270,-260,837,-259,-252,-270,-259,-304,-289,-341,-315,-406,-359,-470,-425,-461,-470,-525,-552]} 1. e4 {[%emt 0:03:00]} c5 {[%emt 0:01:00]} 2. Nf3 {[%emt 0:00:30]} d6 {[%emt 0:00:30]} 3. d4 {[%emt 0:00:30]} cxd4 {[%emt 0:00:30]} 4. Nxd4 {[%emt 0:00:30]} Nf6 {[%emt 0:00:30]} 5. Nc3 {[%emt 0:00:30]} a6 {[%emt 0:00:00]} 6. Bg5 {[%emt 0:00:00]} e6 {[%emt 0:00:00]} 7. f4 {[%emt 0:00:00]} Be7 {[%emt 0:00:00]} 8. Qf3 {[%emt 0:04:30]} Qc7 {[%emt 0:00:00]} 9. O-O-O {[%emt 0:04:30]} Nbd7 {[%emt 0:00:00]} 10. g4 {[%emt 0:02:30]} h6 {[%emt 0:00:00] B99: Sicilian Najdorf: 6 Bg5 e6 7 f4 Be7 8 Qf3 Qc7 9 0-0-0 Nbd7.} 11. Qh3 {[%emt 0:06:30]} (11. Bxf6 $14 {might be stronger.} Bxf6 12. h4) 11... Nc5 {[%emt 0:12:30]} 12. Bg2 {[%emt 0:06:30]} Rg8 {[%emt 0:18:30] White has an edge.} 13. Bxf6 {[%emt 0:11:30]} Bxf6 {[%emt 0:18:30] [#]} 14. f5 $146 {[%emt 0:02:30]} (14. Qf3 $14) ({Predecessor:} 14. Kb1 Bd7 15. Rd2 Ke7 16. Nf5+ Kf8 17. Nxd6 Bc6 18. Rhd1 e5 19. Qh5 Ne6 20. fxe5 {1-0 (47) Rachut,S (2081)-Cornelissen,P (1799) Hengelo 2005}) 14... Bd7 $11 {[%emt 0:05:30]} (14... Qb6 {seems wilder.} 15. Kb1 Bd7 16. fxe6 fxe6 17. Qh5+ Kd8) 15. fxe6 {[%emt 0:02:30]} Bg5+ {[%emt 0:00:30] A strong pair of Bishops.} (15... fxe6 $11 16. Qh5+ g6 17. Qxh6 Na4 18. Nxa4 (18. Qh7 Bg5+ 19. Kb1 Nxc3+ 20. bxc3 O-O-O $17) 18... Bxa4) 16. Kb1 $14 {[%emt 0:00:30]} fxe6 {[%emt 0:00:30]} 17. Qg3 {[%emt 0:06:30]} (17. Nf3 $142) 17... Bf6 {[%emt 0:01:30] [#]} (17... O-O-O $1 $11) 18. h4 {[%emt 0:00:30]} ({Only move:} 18. Nf5 $1 $16 {[%cal Rf5d6][%mdl 512]} exf5 (18... Be5 19. Nxd6+) 19. Nd5) 18... O-O-O $11 {[%emt 0:02:30]} (18... Rf8 {looks sharper.} 19. Nce2 Qb6 20. g5 Be5) 19. g5 {[%emt 0:00:30]} Be5 {[%emt 0:01:30]} 20. Qe3 {[%emt 0:00:30]} Kb8 {[%emt 0:01:30]} 21. Rhf1 {[%emt 0:02:30]} (21. Nce2 {with more complications.} Na4 22. b3 Qb6 23. Rd3) 21... hxg5 {[%emt 0:01:30]} 22. hxg5 {[%emt 0:00:30]} Rc8 {[%emt 0:04:30]} 23. Rd2 {[%emt 0:08:30]} Qb6 {[%emt 0:01:30]} (23... Rh8 {simplifies} 24. Rh1 Rxh1+ 25. Bxh1 Rh8) 24. Bh3 {[%emt 0:11:30]} Rh8 {[%emt 0:02:30] Threatens to win with ...Bxd4.} 25. Rf3 {[%emt 0:02:30]} Rh4 {[%emt 0:04:30] Black is more active.} ({Inferior is} 25... Na4 26. Nxa4 Bxa4 27. c3 $15) 26. a3 {[%emt 0:02:30]} Rch8 {[%emt 0:06:04]} ({Weaker is} 26... Na4 27. Nxa4 Bxa4 28. Bxe6 Bxd4 29. Qxd4 Bxc2+ 30. Ka2 Qxd4 31. Rxd4 $11) (26... Bc6 $19 {[%cal Rc6e4] and Black stays clearly on top.} 27. Bxe6 Nxe6 28. Nxe6 Qxe3 29. Rxe3 Re8) 27. Bf1 {[%emt 0:01:30]} Bc6 {[%emt 0:04:20]} 28. Bd3 {[%emt 0:00:52]} (28. Nxc6+ $17 {was called for.} Qxc6 29. Rdf2) 28... Rh1+ $40 {[%emt 0:00:51][%mdl 128] Black wants a kill.} ({Better is} 28... Be8 $19 {[%cal Od6d5] Strongly threatening ...d5!} 29. Ka2 Nxd3 30. Rxd3 Rh2) 29. Ka2 $2 {[%emt 0:03:13] [#]} (29. Bf1 $17 {is the only way for White.}) 29... Bxd4 $1 $19 {[%emt 0:02:21] Chess con chili.} 30. Qxd4 {[%emt 0:00:06][%cal Of3f8] [#]} Ra1+ $3 {[%emt 0:00:07][%mdl 512]} 31. Kxa1 {[%emt 0:00:17] [#]} Nb3+ $1 {[%emt 0:00:35][%mdl 576] Discovered Attack} 32. cxb3 {[%emt 0:00:16]} Qxd4 {[%emt 0:00:00]} 33. Rd1 {[%emt 0:01:16]} Qe5 {[%emt 0:00:05] Prevents Bb5.} 34. Rg1 {[%emt 0:00:04]} Qh2 {[%emt 0:02:02]} 35. Rgg3 {[%emt 0:00:42]} Qd2 {[%emt 0:00:45]} 36. Nb1 {[%emt 0:00:05]} Qe1 {[%emt 0:01:56] Black is clearly winning.} 37. Re3 {[%emt 0:00:07]} Qc1 {[%emt 0:00:00]} 38. Re2 {[%emt 0:01:10] Prevents Rh2.} Bb5 {[%emt 0:00:40] Weighted Error Value: White=0.46/Black=0.26 (precise)} 0-1

[Event "Turkish Championship 2022"]
[Site "Kemer-Antalya"]
[Date "2022.11.28"]
[Round "4.1"]
[White "Yavuz, Efe Metehan"]
[Black "Kilic, Eray"]
[Result "1-0"]
[ECO "B06"]
[WhiteElo "2256"]
[BlackElo "2437"]
[Annotator "TA"]
[PlyCount "117"]
[EventDate "2022.11.25"]
[EventCountry "TUR"]
[SourceTitle "playchess.com"]
[Source "ChessBase"]
[SourceQuality "1"]
[TimeControl "40/5400+30:1800+30"]

{[%evp 11,117,16,9,0,18,11,6,0,0,-18,-9,-14,0,-10,0,-2,0,-7,0,0,0,0,0,-8,0,0,50,7,12,22,39,52,31,0,77,77,98,41,87,31,176,0,0,0,0,0,0,0,0,0,0,0,0,0,0,0,0,0,0,0,37,8,23,33,36,0,66,0,21,-15,0,0,0,0,0,0,0,0,0,0,0,0,0,0,327,312,535,621,29984,29984,29990,29985,29983,29984,29986,29987,29987,29988,29988,29984,29985,29986,29986,29987,29987,29988,29990,29989]} 1. e4 {[%emt 0:01:00]} c5 {[%emt 0:01:00]} 2. c3 {[%emt 0:00:30]} d5 {[%emt 0:01:30]} 3. exd5 {[%emt 0:00:30]} Qxd5 {[%emt 0:00:30]} 4. d4 {[%emt 0:00:00]} g6 {[%emt 0:00:30]} 5. Nf3 {[%emt 0:09:00]} Bg7 {[%emt 0:01:30]} 6. dxc5 {[%emt 0:00:30]} Qxc5 {[%emt 0:01:30]} (6... Qxd1+ {simplifies} 7. Kxd1 Nd7 8. Bb5 Ngf6) 7. Be3 {[%emt 0:00:30] B06: Modern Defence.} Qa5 {[%emt 0:00:30]} 8. Nbd2 {[%emt 0:17:30]} Nf6 {[%emt 0:03:30]} 9. Nc4 {[%emt 0:02:30] The position is equal.} Qc7 {[%emt 0:00:30]} 10. Be2 {[%emt 0:00:30]} O-O {[%emt 0:00:30] [#]} 11. Qc1 $146 {[%emt 0:04:30]} ({Predecessor:} 11. O-O Nc6 12. Qc1 Ng4 13. Bf4 e5 14. Bg5 Be6 15. h3 Nf6 16. Bh6 Rad8 17. Bxg7 Kxg7 {0-1 (42) Godarz,K (2205)-Pira,D (2380) Teheran 2016}) 11... Be6 {[%emt 0:08:30]} 12. Bf4 {[%emt 0:02:30]} Qc5 {[%emt 0:01:30]} 13. Nce5 {[%emt 0:01:30]} Nbd7 {[%emt 0:12:30]} 14. O-O {[%emt 0:03:30]} Nxe5 {[%emt 0:03:30]} 15. Bxe5 {[%emt 0:02:30]} Rfd8 {[%emt 0:00:30]} 16. Bd4 {[%emt 0:01:30]} Qc7 {[%emt 0:02:30]} 17. a4 {[%emt 0:03:30]} Bd5 {[%emt 0:08:30]} 18. Be5 {[%emt 0:07:30]} Qb6 {[%emt 0:09:30]} (18... Qc5 $11 19. Bd4 Qc7) 19. h3 {[%emt 0:05:30]} (19. a5 {simplifies} Qe6 20. Re1 Ne8 21. Bxg7 Nxg7 22. c4) 19... Ne4 {[%emt 0:13:30][%cal Oe4d2]} (19... Nh5 {simplifies} 20. Bxg7 Nxg7 21. a5 Qc7) 20. a5 {[%emt 0:02:30]} Qe6 {[%emt 0:01:30]} (20... Qc5 {feels hotter.} 21. Qf4 Rac8 22. h4 Bxe5 23. Nxe5 f6) 21. Bxg7 {[%emt 0:00:30]} Kxg7 {[%emt 0:00:00]} 22. Qe3 {[%emt 0:01:30]} Qf6 {[%emt 0:09:13]} (22... Nc5 $11) 23. Rfd1 $16 {[%emt 0:03:30][%cal Od1d5]} e6 {[%emt 0:00:07]} 24. a6 {[%emt 0:07:30]} (24. Rd4 $16) 24... bxa6 {[%emt 0:04:36]} (24... Nd6 $1 $14) 25. Rxa6 {[%emt 0:00:30]} (25. Bxa6 $16 {Strongly threatening c4.} Nd6 26. Ne5) 25... Rab8 {[%emt 0:03:39] [#]} ({Black should play} 25... Nd6 $14) 26. c4 $2 {[%emt 0:03:54]} (26. Qxa7 $2 Rxb2 27. c4 Ra8 $19) (26. Rxd5 $1 $18 {[%mdl 512]} Rxd5 27. Qxe4) 26... Bb7 $11 {[%emt 0:00:07]} 27. Rxd8 {[%emt 0:04:26]} Rxd8 {[%emt 0:00:02]} 28. Rxa7 {[%emt 0:03:20]} Qxb2 {[%emt 0:00:48]} 29. Kh2 {[%emt 0:00:16]} Kg8 {[%emt 0:06:56]} 30. Ng5 {[%emt 0:05:33] aiming for Rxb7.} Nxg5 {[%emt 0:02:46]} 31. Qxg5 {[%emt 0:00:30]} Rf8 {[%emt 0:00:00] ...Bf3 is the strong threat.} 32. Qe3 {[%emt 0:00:44] Against Bf3} Qb4 {[%emt 0:03:17]} 33. Qa3 {[%emt 0:03:54]} Qb1 {[%emt 0:01:11]} 34. Qe3 {[%emt 0:01:40]} Qb2 {[%emt 0:00:27]} 35. h4 {[%emt 0:00:41][%cal Bh3h4,Bh4h5][%mdl 32]} Bc6 {[%emt 0:00:38]} 36. Rc7 {[%emt 0:01:13]} Ba8 {[%emt 0:00:36]} (36... Qb8 {simplifies} 37. Qg3 Rc8 38. Rxc8+ Qxc8 39. Qd6 Qa8) 37. h5 {[%emt 0:01:01]} Qf6 {[%emt 0:00:02]} 38. Qg3 {[%emt 0:00:46]} Rd8 {[%emt 0:00:30]} (38... Kg7 $11) 39. Ra7 {[%emt 0:00:24]} ({Better is} 39. h6 $14) 39... Be4 {[%emt 0:00:32]} 40. Bg4 {[%emt 0:00:00]} (40. Kg1 {simplifies} g5 41. Qe3 Qf4 42. Qxf4 gxf4 43. h6) 40... Qd4 {[%emt 0:00:00]} (40... g5 {simplifies} 41. Qe3 Qe5+ 42. Qg3 Qxg3+ 43. Kxg3 f5) 41. Qc7 {[%emt 0:02:38]} Rf8 {[%emt 0:12:03]} 42. f3 {[%emt 0:06:30]} Bf5 {[%emt 0:00:30]} 43. Bxf5 {[%emt 0:02:30]} exf5 {[%emt 0:00:00][%mdl 4096] Endgame KQR-KQR} 44. f4 {[%emt 0:01:30]} Qf2 {[%emt 0:08:01]} 45. Ra3 {[%emt 0:00:41]} Qh4+ {[%emt 0:04:37]} (45... gxh5 $2 46. Rg3+ Kh8 47. Qe5+ f6 48. Qe7 $18 (48. Qxf5 Qd4 $18) (48. Qxf5 Qd4 $18)) 46. Rh3 {[%emt 0:00:30]} Qf6 {[%emt 0:00:11]} 47. h6 {[%emt 0:04:40]} Qe6 $2 {[%emt 0:00:20][%mdl 8192] [#]} (47... Re8 $11) 48. Rd3 $1 $18 {[%emt 0:03:41] And now c5 would win.} Qe1 $2 {[%emt 0:03:26]} (48... Re8 49. c5 Kf8) 49. Qd6 {[%emt 0:01:39] White wants to mate with Qf6.} ({Not} 49. Qe5 Qxe5 50. fxe5 Rc8 $11) 49... Qe4 {[%emt 0:04:25]} 50. c5 {[%emt 0:01:40] White mates.} g5 {[%emt 0:02:29]} 51. c6 {[%emt 0:03:06]} Re8 {[%emt 0:00:25]} 52. c7 {[%emt 0:01:45]} Qe1 {[%emt 0:00:32]} 53. Rg3 {[%emt 0:00:36]} g4 {[%emt 0:00:28]} 54. Qf6 {[%emt 0:00:16][%csl Gh6][%cal Rf6g7]} Kf8 {[%emt 0:00:01]} 55. Qh8+ {[%emt 0:00:31]} Ke7 {[%emt 0:00:30] [#]} 56. Qxe8+ $3 {[%emt 0:00:30][%mdl 512]} Kxe8 {[%emt 0:00:00]} 57. c8=Q+ {[%emt 0:00:00]} (57. c8=B $2 {loses.} Qe4 58. Bxf5 Qxf5 $19) 57... Ke7 {[%emt 0:00:08]} 58. Qxf5 {[%emt 0:00:16]} Kf8 {[%emt 0:00:00]} 59. Qxh7 {[%emt 0:00:00] Weighted Error Value: White=0.12 (very precise) /Black=0.33} 1-0

[Event "Turkish Championship 2022"]
[Site "Kemer-Antalya"]
[Date "2022.11.28"]
[Round "4.2"]
[White "Yilmazyerli, Mert"]
[Black "Ozsakallioglu, Okan"]
[Result "1/2-1/2"]
[ECO "C42"]
[WhiteElo "2534"]
[BlackElo "2288"]
[Annotator "TA"]
[PlyCount "64"]
[EventDate "2022.11.25"]
[EventCountry "TUR"]
[SourceTitle "playchess.com"]
[Source "ChessBase"]
[SourceQuality "1"]
[TimeControl "40/5400+30:1800+30"]

{[%evp 14,64,59,22,25,15,22,22,22,27,25,17,20,27,29,8,9,9,10,4,4,3,5,6,7,4,8,7,7,0,0,0,0,0,3,3,6,0,0,0,0,0,0,0,0,0,0,0,0,0,0,0,0]} 1. e4 {[%emt 0:06:00]} e5 {[%emt 0:01:00]} 2. Nf3 {[%emt 0:03:30]} Nf6 {[%emt 0:00:00]} 3. Nxe5 {[%emt 0:01:30]} Nxe4 {[%emt 0:00:00]} 4. Qe2 {[%emt 0:00:30]} Qe7 {[%emt 0:01:30]} 5. Qxe4 {[%emt 0:00:30]} d6 {[%emt 0:00:00]} 6. d4 {[%emt 0:00:30]} dxe5 {[%emt 0:00:00]} 7. dxe5 {[%emt 0:00:30]} Nc6 {[%emt 0:00:00][%cal Bb8c6,Bc6e5,Be5d7][%mdl 32]} 8. Bb5 {[%emt 0:00:00] 8.Nc3 injects fresh life into this line.} (8. Nc3 {simplifies} Qxe5 9. Qxe5+ Nxe5 10. Nb5) 8... Bd7 {[%emt 0:00:00] C42: Petroff Defence: 3 Nxe5 and unusual White 3rd moves.} 9. Nc3 {[%emt 0:00:00]} (9. Bf4 $5 {[%cal Rb1c3]}) 9... O-O-O {[%emt 0:11:30]} 10. Bf4 {[%emt 0:00:00] aiming for 0-0-0.} Qb4 {[%emt 0:01:30]} 11. O-O-O {[%emt 0:06:00]} Qxe4 {[%emt 0:05:30]} 12. Nxe4 {[%emt 0:00:00]} Nxe5 $1 {[%emt 0:00:30][%mdl 64] [#]} 13. Bxd7+ {[%emt 0:05:00]} Nxd7 {[%emt 0:04:30]} 14. Rhe1 {[%emt 0:18:30] [#]} h6 $146 {[%emt 0:20:30] Prevents Ng5. The position is equal.} ({Predecessor:} 14... Bb4 15. c3 Be7 16. Ng5 Bxg5 17. Bxg5 Rde8 18. Kc2 Nc5 19. Be3 Ne6 20. b3 Rd8 21. Rxd8+ Rxd8 {0-1 (43) Szakolczai,P (2278)-Volkmann,F (2416) Austria 2005}) 15. Rd3 {[%emt 0:13:30]} Nc5 {[%emt 0:09:30]} 16. Rf3 {[%emt 0:02:30]} (16. Rxd8+ {simplifies} Kxd8 17. b4 Nxe4 18. Rxe4 a6 19. Kb2) 16... Re8 {[%emt 0:05:30]} 17. Rfe3 {[%emt 0:01:30] [#] Threatens to win with Nxc5.} Nxe4 {[%emt 0:01:30]} 18. Rxe4 {[%emt 0:00:30]} Rxe4 {[%emt 0:00:30]} 19. Rxe4 $11 {[%emt 0:00:00][%mdl 4096] Endgame KRB-KRB} Kd7 {[%emt 0:02:30] Against Re8} 20. Rd4+ {[%emt 0:02:00]} Kc8 {[%emt 0:03:30]} 21. Rc4 {[%emt 0:01:30]} c6 {[%emt 0:00:30]} 22. Re4 {[%emt 0:00:30]} Kd7 {[%emt 0:01:30] Prevents Re8.} 23. Be3 {[%emt 0:05:30]} a6 {[%emt 0:03:30]} 24. Rd4+ {[%emt 0:00:00]} Kc8 {[%emt 0:00:30]} 25. Rd3 {[%emt 0:05:00]} Be7 {[%emt 0:01:30]} 26. Bd4 {[%emt 0:00:30]} Rg8 {[%emt 0:01:30]} 27. c4 {[%emt 0:02:30]} Rd8 {[%emt 0:00:30] And now ...Bc5 would win.} 28. Kc2 {[%emt 0:00:30]} Bf8 {[%emt 0:00:30]} 29. g4 {[%emt 0:00:30]} g6 {[%emt 0:02:30]} 30. h3 {[%emt 0:06:30]} c5 {[%emt 0:00:30]} 31. Be3 {[%emt 0:00:30]} Rxd3 {[%emt 0:00:30]} 32. Kxd3 {[%emt 0:00:30]} Kd7 {[%emt 0:00:30] A balanced but interesting game.   Weighted Error Value: White=0.05 (flawless) /Black=0.00 (flawless)} 1/2-1/2

[Event "Turkish Championship 2022"]
[Site "Kemer-Antalya"]
[Date "2022.11.28"]
[Round "4.3"]
[White "Koksal, Ege"]
[Black "Yilmaz, Mustafa"]
[Result "0-1"]
[ECO "E01"]
[WhiteElo "2321"]
[BlackElo "2621"]
[Annotator "TA"]
[PlyCount "121"]
[EventDate "2022.11.25"]
[EventCountry "TUR"]
[SourceTitle "playchess.com"]
[Source "ChessBase"]
[SourceQuality "1"]
[TimeControl "40/5400+30:1800+30"]

{[%evp 20,121,25,17,18,26,14,17,22,10,15,9,15,12,10,9,8,23,14,6,10,0,1,2,2,2,18,0,0,-25,0,0,0,-54,-4,-69,-66,-69,-11,-93,-70,-63,-71,-82,-57,-138,-55,-117,-84,-92,-62,-268,-275,-276,-258,-325,-335,-328,-236,-223,-212,-259,-260,-250,-250,-254,-261,-614,-567,-636,-643,-650,-627,-643,-595,-587,-387,-615,-608,-608,-603,-600,-593,-553,-537,-677,-676,-854,-852,-1317,-1217,-1212,-1125,-1304,-1131,-1602,-1582,-29970,-29971,-5872,-2759,-29981,-5600,-1390]} 1. d4 {[%emt 0:05:00]} Nf6 {[%emt 0:01:00]} 2. Nf3 {[%emt 0:00:30]} e6 {[%emt 0:00:30]} 3. g3 {[%emt 0:06:30]} c5 {[%emt 0:00:30]} 4. Bg2 {[%emt 0:00:00]} cxd4 {[%emt 0:00:30]} 5. O-O {[%emt 0:00:00]} d5 {[%emt 0:00:30]} 6. Nxd4 {[%emt 0:00:30]} e5 {[%emt 0:00:30]} 7. Nf3 {[%emt 0:00:00]} Nc6 {[%emt 0:00:30]} 8. c4 {[%emt 0:00:00]} d4 {[%emt 0:01:30]} 9. e3 {[%emt 0:00:00]} Be7 {[%emt 0:00:30]} 10. exd4 {[%emt 0:00:00]} exd4 {[%emt 0:00:00]} 11. Bf4 {[%emt 0:01:30]} Be6 {[%emt 0:00:00] E01: Catalan: Early deviations.} 12. Ne5 {[%emt 0:07:30]} Rc8 {[%emt 0:02:30][%cal Ba8c8,Bc8c4,Bc4b4,Bb4b7][%mdl 32]} 13. Nd2 {[%emt 0:08:30]} O-O {[%emt 0:03:30] The position is equal.} 14. Ndf3 {[%emt 0:02:30]} Nxe5 {[%emt 0:26:30]} 15. Nxe5 {[%emt 0:01:30]} Bxc4 {[%emt 0:00:30]} 16. Nxc4 {[%emt 0:02:30]} Rxc4 {[%emt 0:02:30]} 17. Qd3 {[%emt 0:03:30]} Rb4 {[%emt 0:05:30]} 18. Rab1 {[%emt 0:30:30]} Nd7 {[%emt 0:07:30]} 19. Qd2 {[%emt 0:09:30]} Nb8 {[%emt 0:06:30] [#]} (19... Qb6 $5) 20. Rfc1 $146 {[%emt 0:05:42]} ({Predecessor:} 20. a3 Rb6 21. b4 Qd7 22. Rfe1 Nc6 23. Rbc1 a6 24. Qd3 Rd8 25. h4 h6 26. Rc2 {½-½ (34) Heinsohn,M (2390)-Gromotka,H (2417) ICCF email 2012}) 20... Nc6 {[%emt 0:11:30]} 21. Bxc6 {[%emt 0:02:58]} bxc6 {[%emt 0:00:30]} 22. Rxc6 {[%emt 0:00:10]} Rb7 {[%emt 0:05:30]} (22... Qd5 {seems wilder.} 23. Rc7 Qxa2 24. Rd1 Rxb2 25. Qxd4 Bf6) 23. Rc4 {[%emt 0:03:02]} (23. Qd3 {looks sharper.} Re8 24. b3 Qd5 25. Qa6) 23... Bf6 {[%emt 0:04:46] Threatens to win with ...g5.} 24. Re1 {[%emt 0:03:29]} Qd5 {[%emt 0:02:51]} (24... d3 $5 {[%cal Rb7b2]} 25. b3 h6 $11) 25. b3 {[%emt 0:00:33]} d3 {[%emt 0:01:48]} 26. h4 {[%emt 0:01:42]} (26. Bc7 $11) 26... h6 {[%emt 0:01:45]} ({Black should play} 26... Rd7 $1 $15) 27. Rd1 {[%emt 0:02:05]} (27. Bc7 $11) 27... Re8 {[%emt 0:03:29]} 28. Be3 {[%emt 0:00:01]} Rd7 {[%emt 0:00:00]} 29. Rdc1 {[%emt 0:01:22]} (29. Qc1 $1 $11 {keeps the balance.}) 29... Ree7 {[%emt 0:04:12] Black is much more active.} (29... Be5 {keeps more tension.} 30. Re1 Re6 31. Rc8+ Kh7) 30. Rc5 {[%emt 0:00:23]} Qf3 {[%emt 0:00:33]} 31. R5c4 {[%emt 0:01:08] Against Bd4} Kh7 {[%emt 0:02:57]} 32. Re1 {[%emt 0:01:03]} (32. a3 $15) 32... Qf5 {[%emt 0:02:50]} (32... Re6 $17 {[%cal Og7g5] ...g5! is the strong threat.} 33. Rf4 Qd5) 33. Kg2 {[%emt 0:00:54]} (33. Qd1 $1 $15) 33... Qd5+ $17 {[%emt 0:00:42]} 34. Kg1 {[%emt 0:00:12]} Re6 {[%emt 0:00:13]} 35. Rcc1 $2 {[%emt 0:00:45] [#] This move loses the game for White.} (35. Qd1 $1 $15) 35... Bxh4 $1 $19 {[%emt 0:01:41][%mdl 512]} 36. Bf4 {[%emt 0:01:02] Black must now prevent Rxe6.} ({Much worse is} 36. Rc5 Qf3 37. Qd1 {[#]} Rxe3 $1 {[%mdl 512]} 38. Qxf3 Rxf3 $19) 36... Bf6 {[%emt 0:00:54]} 37. Rxe6 {[%emt 0:00:02]} fxe6 {[%emt 0:00:20]} ({Worse is} 37... Qxe6 38. Be3 $17) 38. Be3 {[%emt 0:01:43]} Qf3 {[%emt 0:00:53]} 39. Qd1 {[%emt 0:00:58]} Qe2 {[%emt 0:01:15]} 40. Kg2 {[%emt 0:00:00]} Qxa2 {[%emt 0:00:00] aiming for ...d2.} 41. Bd2 {[%emt 0:27:47]} Qb2 {[%emt 0:17:27]} 42. Rc6 {[%emt 0:01:16]} Qe5 {[%emt 0:00:34]} 43. Qf3 {[%emt 0:01:51] Inhibits Qe4.} (43. f4 Qd4 44. Rc4) 43... Qe2 {[%emt 0:01:53]} 44. Qe3 {[%emt 0:00:52]} Bg5 {[%emt 0:03:32]} 45. Qxe2 {[%emt 0:00:30]} dxe2 {[%emt 0:00:00][%mdl 4096] Endgame KRB-KRB} 46. Ba5 {[%emt 0:00:00]} Rd5 {[%emt 0:00:17]} 47. Bb4 {[%emt 0:00:00]} a5 {[%emt 0:03:04]} 48. Bc3 {[%emt 0:02:08]} (48. Bxa5 $142 Rxa5 49. Rxe6) 48... Bf6 {[%emt 0:00:14] ( -> ...Bxc3)} 49. Be1 {[%emt 0:00:56]} Rd1 {[%emt 0:00:08]} 50. Bxa5 {[%emt 0:00:16]} e1=Q {[%emt 0:00:16]} 51. Bxe1 {[%emt 0:00:33]} Rxe1 {[%emt 0:00:30] KRB-KR} 52. b4 {[%emt 0:00:00]} Bd4 {[%emt 0:00:15] Hoping for ...Re2.} 53. Kf3 {[%emt 0:00:00] Prevents Re2.} e5 {[%emt 0:00:00]} 54. Rc4 {[%emt 0:00:19]} h5 {[%emt 0:01:06]} 55. Rc2 {[%emt 0:00:34]} Rb1 {[%emt 0:00:39]} 56. Rc4 {[%emt 0:00:11]} Rb3+ {[%emt 0:00:28]} 57. Ke4 {[%emt 0:00:43]} Bxf2 {[%emt 0:00:09]} 58. Kxe5 {[%emt 0:00:00]} Bxg3+ {[%emt 0:00:41]} 59. Kd5 {[%emt 0:00:27]} Be1 {[%emt 0:00:30]} 60. Kc5 {[%emt 0:00:00] [#]} Bxb4+ $1 {[%emt 0:00:00]} 61. Kd4 {[%emt 0:00:32] Weighted Error Value: White=0.48/Black=0.20 (precise)} (61. Kd5 g5) 0-1